fUST/lending_fUST_20240217
["ID","MTS","AMOUNT","RATE_DAILY","PERIOD"]
[314244986,1708117843065,-810.49,0.00027671,2]
[314244987,1708117843074,-500.0,0.00027671,2]
[314244989,1708117843083,-500.0,0.00027671,2]
[314244991,1708117843093,-743.59,0.00027671,2]
[314244992,1708117843104,-560.82812338,0.00027671,2]
[314244993,1708117843114,-665.81,0.00027671,2]
[314244994,1708117843124,-500.0,0.00027671,2]
[314244996,1708117843135,-647.88090187,0.00027671,2]
[314244998,1708117843144,-500.0,0.00027671,2]
[314244999,1708117843153,-500.0,0.00027671,2]
[314245001,1708117843162,-411.11924494,0.00027671,2]
[314245003,1708117843172,-500.0,0.00027671,2]
[314245004,1708117843181,-500.0,0.00027671,2]
[314245005,1708117843191,-499.83,0.00027671,2]
[314245006,1708117843200,-500.0,0.00027671,2]
[314245007,1708117843210,-500.0,0.00027671,2]
[314245008,1708117843219,-500.0,0.00027671,2]
[314245009,1708117843228,-500.0,0.00027671,2]
[314245010,1708117843237,-521.66501298,0.00027671,2]
[314245012,1708117843246,-500.0,0.00027671,2]
[314245013,1708117843255,-500.0,0.00027671,2]
[314245015,1708117843265,-958.51,0.00027671,2]
[314245017,1708117843274,-1467.29,0.00027671,2]
[314245019,1708117843283,-500.0,0.00027671,2]
[314245020,1708117843292,-201.73772171,0.00027671,2]
[314245021,1708117843302,-500.0,0.00027671,2]
[314245022,1708117843321,-500.0,0.00027671,2]
[314245023,1708117843358,-500.0,0.00027671,2]
[314245025,1708117843368,-1000.0,0.00027671,2]
[314245026,1708117843377,-500.0,0.00027671,2]
[314245027,1708117843387,-977.22,0.00027671,2]
[314245028,1708117843396,-500.0,0.00027671,2]
[314245029,1708117843405,-1046.5,0.00027671,2]
[314245030,1708117843415,-505.46231435,0.00027671,2]
[314245032,1708117843424,-500.0,0.00027671,2]
[314245033,1708117843433,-500.0,0.00027671,2]
[314245034,1708117843442,-500.0,0.00027671,2]
[314245035,1708117843452,-1164.36,0.00027671,2]
[314245036,1708117843460,-505.78987287,0.00027671,2]
[314245037,1708117843470,-1000.0,0.00027671,2]
[314245038,1708117843479,-1177.02,0.00027671,2]
[314245039,1708117843488,-10199.48,0.00027671,2]
[314245040,1708117843497,-500.0,0.00027671,2]
[314245041,1708117843506,-7322.7,0.00027671,2]
[314245042,1708117843515,-500.0,0.00027671,2]
[314245043,1708117843524,-1529.16,0.00027671,2]
[314245044,1708117843533,-8160.25,0.00027671,2]
[314245045,1708117843546,-591.31156271,0.00027671,2]
[314245046,1708117843555,-500.0,0.00027671,2]
[314245048,1708117843564,-5800.58,0.00027671,2]
[314245050,1708117843574,-912.93,0.00027671,2]
[314245052,1708117843585,-2182.32,0.00027671,2]
[314245054,1708117843594,-875.11,0.00027671,2]
[314245057,1708117843610,-1720.06,0.00027671,2]
[314245059,1708117843626,-988.24,0.00027671,2]
[314245060,1708117843640,-500.0,0.00027671,2]
[314245061,1708117843652,-1374.3,0.00027671,2]
[314245062,1708117843666,-500.0,0.00027671,2]
[314245063,1708117843680,-9742.87,0.00027671,2]
[314245064,1708117843695,-514.19124919,0.00027671,2]
[314245065,1708117843709,-1268.03,0.00027671,2]
[314245066,1708117843722,-14609.34,0.00027671,2]
[314245067,1708117843735,-500.0,0.00027671,2]
[314245068,1708117843747,-1146.09,0.00027671,2]
[314245069,1708117843760,-500.0,0.00027671,2]
[314245070,1708117843774,-12747.65,0.00027671,2]
[314245071,1708117843788,-500.0,0.00027671,2]
[314245072,1708117843802,-500.0,0.00027671,2]
[314245073,1708117843815,-1831.54,0.00027671,2]
[314245074,1708117843830,-500.0,0.00027671,2]
[314245075,1708117843843,-232.03608461,0.00027671,2]
[314245076,1708117843857,-446.541526,0.00027671,2]
[314245077,1708117843869,-500.0,0.00027671,2]
[314245078,1708117843883,-1712.12,0.00027671,2]
[314245079,1708117843899,-624.09841432,0.00027671,2]
[314245080,1708117843910,-338.35172443,0.00027671,2]
[314245081,1708117843922,-500.0,0.00027671,2]
[314245082,1708117843934,-500.0,0.00027671,2]
[314245083,1708117843946,-2019.67,0.00027671,2]
[314245084,1708117843960,-331.92161158,0.00027671,2]
[314245085,1708117843970,-721.64,0.00027671,2]
[314245086,1708117843981,-500.0,0.00027671,2]
[314245087,1708117843994,-1421.87,0.00027671,2]
[314245088,1708117844006,-500.0,0.00027671,2]
[314245089,1708117844016,-500.0,0.00027671,2]
[314245090,1708117844028,-534.31,0.00027671,2]
[314245091,1708117844039,-500.0,0.00027671,2]
[314245092,1708117844051,-1325.35,0.00027671,2]
[314245093,1708117844062,-3466.87,0.00027671,2]
[314245094,1708117844073,-500.0,0.00027671,2]
[314245095,1708117844085,-2487.42,0.00027671,2]
[314245096,1708117844097,-502.74547419,0.00027671,2]
[314245097,1708117844111,-350.7128037,0.00027671,2]
[314245098,1708117844123,-1362.12,0.00027671,2]
[314245099,1708117844135,-500.0,0.00027671,2]
[314245100,1708117844146,-150.29686133,0.00027727,2]
[314245101,1708117844157,-500.0,0.00027808,2]
[314245102,1708117844169,-2339.22859667,0.00027855,2]
[314245103,1708117844181,-1000.0,0.00027945,2]
[314245104,1708117844194,-500.0,0.00027945,2]
[314245105,1708117844206,-500.0,0.00027945,2]
[314245106,1708117844217,-546.272416,0.00027945,2]
[314245107,1708117844228,-505.81901091,0.00027945,2]
[314245108,1708117844239,-500.0,0.00027945,2]
[314245109,1708117844251,-528.25,0.00027945,2]
[314245110,1708117844262,-500.0,0.00027945,2]
[314245111,1708117844273,-500.0,0.00027945,2]
[314245112,1708117844285,-500.0,0.00027945,2]
[314245113,1708117844296,-177.76093392,0.00027945,2]
[314245114,1708117844308,-500.0,0.00027945,2]
[314245115,1708117844320,-500.0,0.00027945,2]
[314245116,1708117844331,-555.71,0.00027945,2]
[314245117,1708117844343,-329.84382011,0.00027945,2]
[314245118,1708117844356,-500.0,0.00027945,2]
[314245119,1708117844367,-500.0,0.00027945,2]
[314245120,1708117844379,-500.0,0.00027945,2]
[314245121,1708117844390,-842.74,0.00027945,2]
[314245122,1708117844402,-500.0,0.00027945,2]
[314245123,1708117844414,-810.49,0.00027945,2]
[314245124,1708117844426,-500.0,0.00027945,2]
[314245125,1708117844532,-500.0,0.00027945,2]
[314245126,1708117844545,-743.59,0.00027945,2]
[314245127,1708117844555,-665.81,0.00027945,2]
[314245128,1708117844564,-500.0,0.00027945,2]
[314245129,1708117844575,-500.0,0.00027945,2]
[314245130,1708117844584,-500.0,0.00027945,2]
[314245131,1708117844593,-510.65141927,0.00027945,2]
[314245132,1708117844602,-500.0,0.00027945,2]
[314245133,1708117844615,-618.0799608,0.00027945,2]
[314245134,1708117844624,-636.06000824,0.00027945,2]
[314245135,1708117844633,-500.0,0.00027945,2]
[314245136,1708117844642,-500.0,0.00027945,2]
[314245137,1708117844652,-532.40122804,0.00027945,2]
[314245138,1708117844661,-958.51,0.00027945,2]
[314245139,1708117844670,-1467.29,0.00027945,2]
[314245140,1708117844680,-500.0,0.00027945,2]
[314245141,1708117844689,-500.0,0.00027945,2]
[314245142,1708117844698,-500.0,0.00027945,2]
[314245143,1708117844707,-1000.0,0.00027945,2]
[314245144,1708117844717,-500.0,0.00027945,2]
[314245145,1708117844726,-977.22,0.00027945,2]
[314245146,1708117844735,-361.11680653,0.00027945,2]
[314245147,1708117844745,-1046.5,0.00027945,2]
[314245148,1708117844754,-500.0,0.00027945,2]
[314245149,1708117844765,-500.0,0.00027945,2]
[314245150,1708117844773,-1164.36,0.00027945,2]
[314245151,1708117844783,-1000.0,0.00027945,2]
[314245152,1708117844791,-1177.02,0.00027945,2]
[314245153,1708117844801,-10199.48,0.00027945,2]
[314245154,1708117844810,-500.0,0.00027945,2]
[314245155,1708117844819,-7322.7,0.00027945,2]
[314245156,1708117844829,-188.73031809,0.00027945,2]
[314245157,1708117844838,-1529.16,0.00027945,2]
[314245158,1708117844847,-8160.25,0.00027945,2]
[314245159,1708117844856,-5800.58,0.00027945,2]
[314245160,1708117844865,-500.0,0.00027945,2]
[314245161,1708117844874,-912.93,0.00027945,2]
[314245162,1708117844883,-2182.32,0.00027945,2]
[314245163,1708117844893,-875.11,0.00027945,2]
[314245164,1708117844902,-1720.06,0.00027945,2]
[314245165,1708117844911,-988.24,0.00027945,2]
[314245166,1708117844920,-500.0,0.00027945,2]
[314245167,1708117844930,-1374.3,0.00027945,2]
[314245168,1708117844940,-500.0,0.00027945,2]
[314245169,1708117844950,-9742.87,0.00027945,2]
[314245170,1708117844959,-1268.03,0.00027945,2]
[314245171,1708117844971,-14609.34,0.00027945,2]
[314245172,1708117844980,-500.0,0.00027945,2]
[314245173,1708117844993,-639.25106932,0.00027945,2]
[314245216,1708117935001,-174.0,0.0003066,35]
[314245217,1708117935027,-127.0,0.0003066,35]
[314245218,1708117935220,-2663.0,0.0003066,35]
[314245219,1708117935244,-174.0,0.0003067,35]
[314245220,1708117935268,-127.0,0.0003067,35]
[314245221,1708117935340,-2663.0,0.0003067,35]
[314245222,1708117935364,-174.0,0.0003068,35]
[314245223,1708117935386,-127.0,0.0003068,35]
[314245224,1708117935459,-332.8,0.0003068,35]
[314245225,1708117935573,-1478.2,0.0003068,35]
[314245226,1708117985619,2038.0,0.0003067,35]
[314245227,1708117986062,926.0,0.0003066,35]
[314245228,1708117986085,1112.0,0.0003066,35]
[314245229,1708118047384,150.5,0.0003066,35]
[314245230,1708118323933,1630.0,0.0003066,35]
[314245231,1708118742710,71.5,0.0003066,35]
[314245285,1708119032625,-154.87609912,0.00020621,2]
[314245287,1708119032635,-6795.87241183,0.00020721,2]
[314245288,1708119032648,-1190.17239104,0.00020721,2]
[314245289,1708119032657,-2527.67147816,0.00020722,2]
[314245290,1708119032666,-221.1066205,0.0002095,2]
[314245291,1708119032675,-159.896641,0.0002165,2]
[314245292,1708119032684,-200.0,0.00021757,7]
[314245293,1708119032694,-28006.21178032,0.00021929,2]
[314245294,1708119032703,-9283.42699044,0.00021929,2]
[314245295,1708119032712,-1223.69348118,0.00021929,2]
[314245296,1708119032721,-4155.12200867,0.00021929,2]
[314245297,1708119032731,-280.0,0.00023933,7]
[314245298,1708119032740,-166.666666,0.00024658,2]
[314245299,1708119032749,-330.5827492,0.00024658,2]
[314245300,1708119032758,-4742.51638148,0.00025,2]
[314245301,1708119032767,-166.666666,0.00025235,2]
[314245302,1708119032776,-651.41700959,0.00025571,2]
[314245303,1708119032785,-166.666666,0.00025812,2]
[314245304,1708119032795,-391.0,0.00026326,15]
[314245305,1708119032804,-166.666666,0.00026388,2]
[314245306,1708119032813,-171.87760054,0.0002642,2]
[314245307,1708119032822,-161.44653226,0.0002642,2]
[314245308,1708119032832,-625.79497789,0.0002642,3]
[314245309,1708119032841,-166.666666,0.00026965,2]
[314245310,1708119032851,-2333.81,0.0002698,3]
[314245311,1708119032861,-1944.84,0.0002698,3]
[314245312,1708119032870,-2800.57,0.00026989,3]
[314245313,1708119032879,-250.0,0.0002699,3]
[314245314,1708119032888,-3479.0,0.0002699,3]
[314245315,1708119032903,-250.0,0.0002699,3]
[314245316,1708119032912,-250.0,0.0002699,3]
[314245317,1708119032921,-250.0,0.0002699,3]
[314245318,1708119032930,-2415.97,0.0002699,3]
[314245319,1708119032940,-250.0,0.0002699,3]
[314245320,1708119032949,-250.0,0.0002699,3]
[314245321,1708119032958,-250.0,0.0002699,3]
[314245322,1708119032967,-412.18532304,0.00026999,2]
[314245323,1708119032978,-165.25423598,0.00026999,2]
[314245324,1708119032987,-500.0,0.00026999,2]
[314245325,1708119032996,-500.0,0.00026999,2]
[314245326,1708119033005,-500.0,0.00026999,2]
[314245327,1708119033014,-266.70442525,0.00026999,2]
[314245328,1708119033023,-2489.70321978,0.00027,2]
[314245337,1708119042092,-250.0,0.0002699,3]
[314245339,1708119042102,-21919.35934298,0.00027,2]
[314245342,1708119042122,-693.14291551,0.00027,2]
[314245831,1708119046693,-204.45564178,0.0002642,3]
[314245833,1708119046702,-144.2750901,0.00027,2]
[314245851,1708119046883,-77.5959,0.00027,2]
[314259745,1708120237829,-293.0550481,0.00021927,2]
[314259747,1708120237839,-7986.04480287,0.00021928,2]
[314259749,1708120237849,-7385.75706457,0.00021929,2]
[314259751,1708120237859,-2429.46140441,0.00021929,2]
[314259753,1708120237869,-987.54265186,0.00021929,2]
[314259755,1708120237879,-200.0,0.00023024,7]
[314259757,1708120237888,-293.0550481,0.00024657,2]
[314259759,1708120237898,-166.666666,0.00024658,2]
[314259761,1708120237908,-665.29580625,0.000249,2]
[314259763,1708120237917,-4742.51638148,0.00025,2]
[314259765,1708120237927,-166.666666,0.00025308,2]
[314259767,1708120237937,-280.0,0.00025327,7]
[314259770,1708120237946,-620.69055495,0.00025634,2]
[314259772,1708120237956,-703.0,0.000257,2]
[314259774,1708120237965,-166.666666,0.00025958,2]
[314259776,1708120237975,-3030.58233851,0.00026277,2]
[314259960,1708120241152,-868.19,0.00026277,2]
[314260315,1708120458496,382.89121651,0.000176,2]
[314260723,1708122632226,-155.00465014,0.00020221,2]
[314260724,1708122632240,-1396.84184735,0.00020222,2]
[314260725,1708122632252,-3050.13340898,0.00020322,2]
[314260726,1708122632262,-5516.000397,0.00020323,2]
[314260727,1708122632275,-6781.8334346,0.00020485,2]
[314260728,1708122632288,-311.151105,0.00020512,2]
[314260729,1708122632300,-155.0310062,0.00020798,2]
[314260730,1708122632312,-249.50022749,0.00020899,2]
[314260731,1708122632325,-823.97445943,0.00020999,2]
[314260732,1708122632337,-5493.89807813,0.00021,2]
[314260733,1708122632349,-10701.23917667,0.00021,2]
[314260734,1708122632359,-175.76112221,0.00021,2]
[314260735,1708122632372,-200.0,0.00021338,7]
[314260736,1708122632384,-169.725629,0.00021871,2]
[314260737,1708122632396,-2054.19536659,0.00021929,2]
[314260738,1708122632408,-4160.19722129,0.00021929,2]
[314260739,1708122632421,-19539.78903583,0.00021929,2]
[314260740,1708122632434,-2231.8345716,0.00021929,2]
[314260741,1708122632446,-1456.51569055,0.00021929,2]
[314260742,1708122632456,-160.377103,0.00021929,2]
[314260743,1708122632466,-4767.91519656,0.00021929,2]
[314260744,1708122632479,-280.0,0.00023472,7]
[314260745,1708122632491,-2299.83959821,0.00024147,3]
[314260782,1708122646267,-2611.19040179,0.00024147,3]
[314260783,1708122646278,-5893.24,0.00024157,3]
[314260784,1708122646289,-5268.37926356,0.00024167,3]
[314260785,1708122646303,-1803.50073644,0.00024167,3]
[314260786,1708122646314,-443.5305375,0.00024177,2]
[314260787,1708122646325,-691.70233327,0.00024658,2]
[314260788,1708122646336,-166.666666,0.00024658,2]
[314260789,1708122646347,-250.0,0.0002499,3]
[314260790,1708122646357,-4092.53,0.0002499,3]
[314260791,1708122646368,-250.0,0.0002499,3]
[314260792,1708122646379,-5379.771,0.00024999,2]
[314260793,1708122646390,-196.30049169,0.00024999,2]
[314260794,1708122646401,-254.41711346,0.00025,2]
[314260973,1708125032612,-155.00155002,0.00020999,2]
[314260974,1708125032622,-566.64964962,0.00021,2]
[314260975,1708125036950,295.687025,0.000189,2]
[314261014,1708125038691,-3073.73690501,0.00021,2]
[314261057,1708125043586,-277.73976938,0.00021,2]
[314261058,1708125043595,-2749.10830506,0.00021829,2]
[314261059,1708125043608,-157.14305003,0.00021829,2]
[314261060,1708125043617,-2718.5856011,0.00021929,2]
[314261063,1708125043639,-243.48171645,0.00021929,2]
[314261065,1708125043650,-644.9219853,0.00021929,2]
[314261066,1708125043659,-498.40808616,0.00021929,2]
[314261067,1708125043669,-1066.65772711,0.00021929,2]
[314261068,1708125043679,-5000.0,0.00021929,2]
[314261069,1708125043689,-4558.28342466,0.00021929,2]
[314261070,1708125043698,-151.0,0.00022561,2]
[314261071,1708125043707,-20847.906487,0.00022561,2]
[314261072,1708125043717,-258.24032165,0.00022889,2]
[314261073,1708125043727,-291.018737,0.00023019,2]
[314261074,1708125043737,-200.0,0.00023024,7]
[314261075,1708125043746,-168.557448,0.0002326,2]
[314261076,1708125043756,-295.687025,0.000239,2]
[314261077,1708125043765,-200.2824076,0.00024178,2]
[314261078,1708125043774,-306.0,0.00024178,2]
[314261079,1708125043783,-200.2824076,0.00024178,2]
[314261080,1708125043793,-200.2824076,0.00024178,2]
[314261081,1708125043802,-198.86587,0.00024178,2]
[314261082,1708125043811,-153.0,0.00024178,2]
[314261083,1708125043820,-321.1680708,0.00024178,2]
[314261084,1708125043836,-154.112702,0.00024178,2]
[314261085,1708125043850,-200.2824076,0.00024178,2]
[314261086,1708125043860,-1103.42874703,0.00024291,2]
[314261087,1708125043869,-166.666666,0.00024658,2]
[314261088,1708125043879,-250.0,0.0002499,3]
[314261089,1708125043888,-250.0,0.0002499,3]
[314261090,1708125043898,-250.0,0.0002499,3]
[314261091,1708125043907,-250.0,0.0002499,3]
[314261092,1708125043917,-526.98,0.0002499,3]
[314261093,1708125043927,-3364.04,0.0002499,3]
[314261094,1708125043937,-412.18532304,0.00024999,2]
[314261095,1708125043947,-165.25423598,0.00024999,2]
[314261096,1708125043956,-500.0,0.00024999,2]
[314261097,1708125043966,-500.0,0.00024999,2]
[314261098,1708125043975,-590.03398273,0.00024999,2]
[314261099,1708125043986,-176.67044252,0.00024999,2]
[314261100,1708125043996,-3602.43332398,0.00025,2]
[314261101,1708125044005,-116360.398777,0.00025,7]
[314261102,1708125044015,-4742.51638148,0.00025,2]
[314261103,1708125044024,-166.666666,0.00025235,2]
[314261104,1708125044033,-280.0,0.00025327,7]
[314261105,1708125044043,-644.17143735,0.00025506,2]
[314261106,1708125044052,-166.666666,0.00025812,2]
[314261107,1708125044062,-380.62799466,0.00026,2]
[314261108,1708125044071,-3779.21481391,0.00026,2]
[314261109,1708125044080,-500.0,0.0002636,3]
[314261110,1708125044090,-500.0,0.0002636,3]
[314261111,1708125044099,-500.0,0.0002636,3]
[314261112,1708125044108,-500.0,0.0002636,3]
[314261113,1708125044118,-500.0,0.0002636,3]
[314261114,1708125044127,-166.666666,0.00026388,2]
[314261115,1708125044137,-617.14551573,0.0002642,3]
[314261116,1708125044146,-317.01190074,0.0002642,3]
[314261117,1708125044156,-469.27314291,0.0002642,3]
[314261118,1708125044165,-788.05959275,0.0002642,3]
[314261119,1708125044175,-515.75605626,0.0002642,3]
[314261120,1708125044184,-690.6963138,0.0002642,3]
[314261121,1708125044193,-636.50259177,0.0002642,3]
[314261122,1708125044202,-242.98954374,0.0002642,3]
[314261123,1708125044212,-88950.25251326,0.000266,2]
[314261217,1708126088841,425.93,0.00033,120]
[314261254,1708126234424,-295.00773332,0.00024905,2]
[314261256,1708126234434,-166.666666,0.00024906,2]
[314261258,1708126234443,-602.72923499,0.00025337,2]
[314261260,1708126234455,-8593.20700965,0.00025337,2]
[314261262,1708126234467,-5413.98234996,0.00025337,2]
[314261264,1708126234476,-291.018737,0.0002535,2]
[314261266,1708126234485,-166.666666,0.00025585,2]
[314261268,1708126234495,-166.666666,0.00026264,2]
[314261270,1708126234504,-214.55653729,0.00026419,2]
[314261272,1708126234513,-377.57666847,0.0002642,3]
[314261274,1708126234522,-161.44653226,0.0002642,2]
[314261276,1708126234531,-236.41787783,0.0002642,2]
[314261278,1708126234540,-154.72681687,0.0002642,3]
[314261280,1708126234549,-250.0,0.0002649,3]
[314261282,1708126234558,-250.0,0.0002649,3]
[314261283,1708126234568,-250.0,0.0002649,3]
[314261284,1708126234576,-250.0,0.0002649,3]
[314261285,1708126234585,-250.0,0.0002649,3]
[314261286,1708126234594,-250.0,0.0002649,3]
[314261287,1708126234603,-250.0,0.0002649,3]
[314261288,1708126234612,-1972.82835415,0.0002649,3]
[314261333,1708126237768,-2591.0,0.0002649,3]
[314261346,1708126237879,-2630.85944886,0.0002649,3]
[314261460,1708126242744,-315.70134487,0.0002439,2]
[314261462,1708126242752,-4800.43538448,0.000265,2]
[314261465,1708126242764,-271199.56461552,0.000265,2]
[314261467,1708126242773,-153.0,0.000265,2]
[314261469,1708126242782,-153.0,0.000265,2]
[314261471,1708126242791,-153.0,0.000265,2]
[314261473,1708126242800,-153.0,0.000266,2]
[314261475,1708126242809,-153.0,0.000266,2]
[314261477,1708126242818,-153.0,0.000266,2]
[314261479,1708126242827,-153.0,0.000266,2]
[314261481,1708126242836,-1020.2035626,0.000266,2]
[314261484,1708126242846,-200.0,0.00026603,15]
[314261485,1708126242855,-155.12250398,0.00026698,2]
[314261488,1708126242865,-153.0,0.000267,2]
[314261490,1708126242874,-621.20857187,0.00026781,2]
[314261492,1708126242884,-393.17884995,0.00026898,2]
[314261494,1708126242893,-3474.61757315,0.00026899,2]
[314261496,1708126242902,-1961.36737422,0.000269,2]
[314261498,1708126242911,-166.666666,0.00026943,2]
[314261500,1708126242921,-300.0,0.00026984,2]
[314261502,1708126242929,-4702.62916933,0.00026998,2]
[314261504,1708126242939,-500.0,0.00026999,2]
[314261506,1708126242949,-266.37442624,0.00026999,2]
[314261508,1708126242958,-500.0,0.00026999,2]
[314261510,1708126242968,-287.46150888,0.00026999,2]
[314261511,1708126242977,-500.0,0.00026999,2]
[314261514,1708126242986,-500.0,0.00026999,2]
[314261516,1708126242999,-233.81538687,0.00026999,2]
[314261518,1708126243009,-500.0,0.00026999,2]
[314261520,1708126243018,-500.0,0.00026999,2]
[314261522,1708126243029,-500.0,0.00026999,2]
[314261524,1708126243040,-305.71708071,0.00026999,2]
[314261526,1708126243049,-500.0,0.00026999,2]
[314261528,1708126243059,-500.0,0.00026999,2]
[314261530,1708126243068,-500.0,0.00026999,2]
[314261532,1708126243078,-500.0,0.00026999,2]
[314261534,1708126243089,-500.0,0.00026999,2]
[314261536,1708126243098,-500.0,0.00026999,2]
[314261538,1708126243107,-500.0,0.00026999,2]
[314261540,1708126243116,-510.22470366,0.00026999,2]
[314261542,1708126243125,-500.0,0.00026999,2]
[314261544,1708126243134,-173964.1228213,0.00027,2]
[314261547,1708126243151,-396149.15424877,0.00027,2]
[314261604,1708127431964,-295.00773332,0.00023751,2]
[314261605,1708127431974,-155.00155002,0.00023752,2]
[314261606,1708127431983,-166.666666,0.00024658,2]
[314261607,1708127431993,-6632.76291847,0.00024846,2]
[314261608,1708127432020,-1616.75961003,0.00024846,2]
[314261609,1708127432029,-210.46756324,0.000249,2]
[314261610,1708127432038,-242.45754308,0.00024906,2]
[314261631,1708127438012,-48.56119492,0.00024906,2]
[314261632,1708127438022,-166.666666,0.00025301,2]
[314261633,1708127438032,-620.06042859,0.00025884,2]
[314261634,1708127438042,-166.666666,0.00025944,2]
[314261635,1708127438051,-4369.94111816,0.00026129,2]
[314261636,1708127438062,-306.0,0.00026301,2]
[314261637,1708127438071,-250.0,0.0002639,3]
[314261638,1708127438080,-250.0,0.0002639,3]
[314261639,1708127438090,-8548.68,0.0002639,3]
[314261640,1708127438099,-4742.51638148,0.00026398,2]
[314261641,1708127438109,-764.88695134,0.00026399,2]
[314261642,1708127438118,-6925.83056574,0.000264,2]
[314261643,1708127438130,-512.74356397,0.000264,2]
[314261649,1708127441194,-1043.38347121,0.000264,2]
[314261650,1708127441206,-6386.78896919,0.000264,2]
[314261651,1708127441218,-998.987892,0.000264,2]
[314261661,1708127442953,-1469.47435867,0.000264,2]
[314261662,1708127443012,-258662.79117922,0.000264,2]
[314261663,1708127443022,-521.43712099,0.0002642,3]
[314261664,1708127443032,-166.666666,0.00026587,2]
[314261665,1708127443041,-1765.23063678,0.000269,2]
[314261666,1708127443050,-300.0,0.00026943,2]
[314261667,1708127443059,-15386.29566176,0.00027,2]
[314261683,1708127446013,-250.0,0.0002639,3]
[314261685,1708127446023,-213.36013766,0.0002699,3]
[314261687,1708127446035,-6910.53986234,0.0002699,3]
[314261689,1708127446044,-7493.44004492,0.00027,2]
[314261701,1708127657595,155.11311357,0.000176,2]
[314261709,1708128143864,78449.0,0.00015,2]
[314261740,1708128633865,-471.62326606,0.00020998,2]
[314261741,1708128633876,-7504.79158276,0.00020999,2]
[314261742,1708128633886,-24926.3746724,0.00021,2]
[314261743,1708128633895,-9153.08246466,0.00021,2]
[314261744,1708128633905,-175.72920133,0.00021,2]
[314261745,1708128633914,-11697.7956171,0.00021633,2]
[314261746,1708128633924,-5936.58,0.00021919,3]
[314261747,1708128633933,-838.95823216,0.00021929,2]
[314261748,1708128633943,-20968.74095967,0.00021929,2]
[314261749,1708128633952,-8403.42137811,0.00021929,2]
[314261750,1708128633963,-4938.53869783,0.00021929,2]
[314261751,1708128633973,-200.0,0.00022049,7]
[314261752,1708128633983,-250.0,0.0002284,2]
[314261753,1708128633992,-155.00155002,0.00023715,2]
[314261754,1708128634001,-168.591889,0.00023716,2]
[314261755,1708128634011,-280.0,0.00024254,7]
[314261756,1708128634020,-192.53103784,0.000243,2]
[314261757,1708128634030,-230.5827492,0.00024658,2]
[314261758,1708128634039,-166.666666,0.00024658,2]
[314261759,1708128634049,-166.666666,0.00025235,2]
[314261760,1708128634058,-166.666666,0.00025812,2]
[314261761,1708128634067,-250.0,0.0002629,3]
[314261762,1708128634077,-250.0,0.0002629,3]
[314261763,1708128634086,-250.0,0.0002629,3]
[314261764,1708128634096,-219.09594026,0.000263,2]
[314261812,1708128638288,-49783.92541604,0.000263,2]
[314262094,1708128641415,-427.63664462,0.000263,2]
[314262274,1708128643121,-60263.78380599,0.000263,2]
[314262276,1708128643133,-166.666666,0.00026388,2]
[314262278,1708128643142,-391.0,0.00026679,15]
[314262280,1708128643151,-230.319825,0.00026712,2]
[314262282,1708128643161,-166.666666,0.00026965,2]
[314262284,1708128643170,-285.98680214,0.0002697,2]
[314262286,1708128643179,-4947.15,0.0002699,3]
[314262289,1708128643188,-160.85955859,0.00026998,30]
[314262292,1708128643197,-155.01550155,0.00026998,7]
[314262295,1708128643206,-375.34792127,0.00026999,2]
[314262297,1708128643215,-343296.22075488,0.00027,2]
[314262299,1708128643224,-1360.8524666,0.00027,5]
[314262301,1708128643233,-1000.0,0.00027,2]
[314262303,1708128643242,-527.7293075,0.00027123,2]